bitfinex-derivatives/quotes_ETHF0:USTF0_20251118
["timestamp","ask_amount","ask_price","bid_price","bid_amount"]
[1763426953266,3.2078,3026.2,3025.6,0.00360148]
[1763426953465,3.2078,3026.2,3025.7,3.2078]
[1763426953664,0.67416368,3026.4,3026.1,3.2078]
[1763426954065,0.67416368,3026.4,3025.6,3.21140148]
[1763426954268,0.67416368,3026.4,3025.7,3.21276368]
[1763426954467,0.67416368,3026.4,3026.2,3.2078]
[1763426954869,0.67416368,3026.4,3025.8,3.2078]
[1763426955071,0.67416368,3026.4,3025.7,0.00496368]
[1763426955262,3.2078,3026.1,3024.7,3.2078]
[1763426955468,0.00496368,3026.4,3026.0,3.2078]
[1763426955761,3.63226876,3027.2,3026.2,3.2078]
[1763426955762,0.6692,3027.2,3026.2,3.2078]
[1763426955963,0.6692,3027.2,3025.5,2.025]
[1763426955964,0.6692,3027.2,3026.7,3.2078]
[1763426956165,0.6692,3027.2,3027.1,3.2078]
[1763426956372,3.2424,3028.7,3027.1,3.2078]
[1763426956575,3.24554722,3028.7,3027.7,3.2078]
[1763426956876,0.00495516,3028.2,3027.7,3.2078]
[1763426957372,3.24554722,3028.7,3028.1,3.2078]
[1763426957576,0.6692,3029.4,3028.6,3.2078]
[1763426957765,3.2078,3029.6,3029.0,3.2078]
[1763426957969,3.2078,3030.4,3029.5,3.2078]
[1763426958476,0.6692,3029.4,3028.5,3.2078]
[1763426958670,0.6692,3029.4,3028.9,3.2078]
[1763426958972,3.2078,3029.6,3028.9,3.2078]
[1763426959368,0.7626,3028.8,3027.8,3.2078]
[1763426959569,3.2078,3028.1,3027.4,3.2078]
[1763426959873,0.7626,3028.8,3027.8,3.2078]
[1763426960273,3.2078,3029.6,3028.6,3.2078]
[1763426960580,0.67264032,3030.0,3029.3,3.2078]
[1763426960873,3.2078,3030.8,3029.9,3.2078]
[1763426961179,0.6692,3031.2,3030.4,3.2078]
[1763426961180,3.877,3031.2,3030.4,3.2078]
[1763426961365,3.2078,3031.8,3031.1,3.2078]
[1763426961572,3.29844158,3032.4,3031.6,3.2078]
[1763426961880,0.85727237,3032.4,3032.0,3.2078]
[1763426962175,3.21275516,3032.3,3031.6,0.00259481]
[1763426962382,3.21275516,3032.3,3031.4,3.2078]
[1763426962769,3.21275516,3032.3,3031.8,3.2078]
[1763426962972,3.21275516,3032.3,3031.1,3.21275516]
[1763426963381,3.21275516,3032.3,3031.5,3.2078]
[1763426963574,3.21275516,3032.3,3031.1,3.21540903]
[1763426963766,3.21275516,3032.3,3031.1,0.00760903]
[1763426963767,0.7626,3031.2,3031.1,0.00760903]
[1763426963969,0.7626,3031.2,3029.7,3.2078]
[1763426964171,3.2078,3031.0,3029.7,3.2078]
[1763426964369,0.7626,3031.2,3030.3,3.2078]
[1763426964576,0.7626,3031.2,3030.7,3.2078]
[1763426964972,0.7626,3031.2,3030.7,3.21176504]
[1763426965172,0.7626,3031.2,3030.7,0.00396504]
[1763426965472,11.901,3033.3,3030.7,0.00396504]
[1763426965473,3.2078,3032.3,3030.8,3.2078]
[1763426965673,3.2078,3032.3,3031.4,3.2078]
[1763426965869,3.2078,3032.7,3032.0,3.2078]
[1763426966076,3.2078,3032.7,3031.6,3.2078]
[1763426966471,3.2078,3032.3,3031.6,3.2078]
[1763426966776,0.00494689,3032.3,3031.2,3.2078]
[1763426967081,3.2078,3031.8,3031.2,3.2078]
[1763426967282,0.7605,3031.2,3030.8,3.2078]
[1763426967981,3.2078,3031.7,3030.8,3.2078]
[1763426968182,3.2078,3032.1,3030.8,3.2078]
[1763426969080,3.2078,3032.1,3031.4,3.2078]
[1763426969584,0.00494689,3032.3,3032.0,3.2078]
[1763426971086,0.00494689,3032.3,3031.5,3.2078]
[1763426971289,3.2078,3032.1,3031.5,3.2078]
[1763426971585,0.00494689,3032.3,3031.5,3.2078]
[1763426971783,3.2078,3032.1,3031.5,3.2078]
[1763426971972,3.2078,3032.1,3030.7,0.00396504]
[1763426972182,3.9683,3031.2,3030.6,0.00494689]
[1763426972585,0.7605,3031.2,3030.7,3.2078]
[1763426972983,0.7605,3031.2,3030.6,0.00494689]
[1763426972984,3.9683,3031.2,3030.6,0.00494689]
[1763426973176,3.9683,3031.2,3030.6,0.00786349]
[1763426973380,0.7605,3031.2,3030.6,3.21566349]
[1763426973580,0.7605,3031.2,3030.6,0.00786349]
[1763426973774,0.7605,3031.2,3030.7,3.2078]
[1763426973978,9.2078,3031.1,3030.1,3.2078]
[1763426974175,0.7605,3030.0,3026.4,0.6603]
[1763426974385,0.7605,3030.0,3024.9,69.0346942]
[1763426974386,0.7605,3027.6,3026.0,3.2078]
[1763426974586,3.06106366,3027.6,3023.8,2.39030508]
[1763426974791,0.7787523,3027.5,3024.4,2.30056366]
[1763426975082,2.30056366,3027.0,3024.4,0.00232085]
[1763426975288,0.00495573,3026.3,3025.6,0.00495573]
[1763426976187,3.2078,3026.2,3025.6,0.00495573]
[1763426976686,0.00495573,3026.3,3025.6,0.00495573]
[1763426977588,3.2078,3026.1,3025.6,0.00495573]
[1763426977883,0.00495573,3026.3,3025.6,0.00495573]
[1763426978098,0.00495573,3026.3,3026.2,3.2078]
[1763426978386,0.00495573,3026.3,3025.6,0.00495573]
[1763426978684,3.2078,3027.4,3026.2,3.2078]
[1763426978892,3.2078,3027.4,3026.2,3.3032]
[1763426979192,3.2078,3027.3,3026.7,3.2078]
[1763426979390,3.2078,3027.3,3026.7,3.21116219]
[1763426979692,3.21275573,3027.3,3026.7,0.00336219]
[1763426980482,5.73e-06,3027.3,3026.9,3.2078]
[1763426980688,0.00266459,3027.5,3026.9,3.2078]
[1763426980689,3.2078,3028.1,3026.9,3.2078]
[1763426980890,3.2078,3028.1,3027.3,3.2078]
[1763426981690,0.00489052,3028.0,3027.4,0.00495573]
[1763426982183,3.2078,3027.7,3026.7,0.00336219]
[1763426982495,3.2078,3026.9,3026.7,0.00336219]
[1763426983399,3.2078,3027.3,3026.7,0.00336219]
[1763426983891,3.21269052,3028.0,3026.7,3.21116219]
[1763426984792,3.2078,3027.6,3026.7,0.00336219]
[1763426985092,3.2078,3027.7,3026.7,3.21116219]
[1763426985795,3.2078,3027.7,3026.7,0.00336219]
[1763426985995,3.2078,3027.3,3026.7,0.00336219]
[1763426986199,3.2078,3026.9,3026.7,0.00336219]
[1763426986799,3.2078,3027.4,3026.7,3.21116219]
[1763426987503,3.2078,3027.4,3026.7,0.00336219]
[1763426987690,3.2078,3026.9,3026.7,0.00336219]
[1763426988885,3.2078,3027.3,3026.7,0.00336219]
[1763426991398,0.00489052,3028.0,3026.7,0.00336219]
[1763426991399,3.2078,3026.8,3026.7,0.00336219]
[1763426991700,3.2078,3026.8,3026.5,0.00495573]
[1763426992500,3.2078,3026.8,3026.5,0.00876265]
[1763426992897,3.2078,3026.8,3025.5,3.2078]
[1763426993202,3.2078,3026.8,3026.0,3.2078]
[1763426993697,3.2078,3026.8,3026.3,3.2078]
[1763426993998,3.2078,3026.8,3026.3,0.00259004]
[1763426994194,3.2078,3026.4,3026.3,0.00259004]
[1763426994398,3.2078,3026.8,3026.3,0.00259004]
[1763426994596,3.2078,3026.4,3026.3,0.00259004]
[1763426994800,3.2078,3026.8,3026.3,0.00259004]
[1763426995193,0.00495573,3026.9,3026.5,3.2078]
[1763426995709,3.2078,3027.2,3026.6,3.3032]
[1763426995895,3.2078,3027.6,3026.9,3.2078]
[1763426996399,3.21082253,3028.1,3027.4,3.2078]
[1763426996789,3.21577826,3028.1,3027.4,3.2078]
[1763426996991,3.21577826,3028.1,3027.6,2.30056366]
[1763426997297,3.2078,3028.5,3027.8,3.2078]
[1763426997708,3.2078,3029.0,3028.4,3.2078]
[1763426998204,3.2160519,3029.0,3028.4,3.21275573]
[1763426998499,3.2160519,3029.0,3028.4,0.00495573]
[1763426998707,3.2160519,3029.0,3028.0,3.2078]
[1763426998894,3.2160519,3029.0,3028.4,3.2078]
[1763426999700,3.2160519,3029.0,3028.4,3.21275573]
[1763427000401,3.2160519,3029.0,3027.8,3.2078]
[1763427000601,0.7605,3030.0,3028.6,3.2078]
[1763427000799,0.7605,3030.0,3029.2,3.2078]
[1763427000999,0.7605,3030.0,3028.6,5.625]
[1763427001000,3.2078,3030.5,3029.9,3.2078]
[1763427001209,3.9836,3030.5,3029.6,3.2078]
[1763427001511,3.2078,3030.5,3030.1,3.2078]
[1763427001699,3.2078,3031.5,3030.1,3.2103683]
[1763427001898,3.2078,3031.5,3030.8,3.2078]
[1763427002705,0.00886532,3031.5,3031.3,3.2078]
[1763427003813,3.2078,3031.4,3030.7,3.2078]
[1763427004107,0.00886532,3031.5,3031.1,3.2078]
[1763427005215,3.2078,3031.4,3030.7,3.08053196]
[1763427005708,0.7758,3030.5,3030.2,3.2078]
[1763427005906,0.7758,3030.5,3030.1,0.0025683]
[1763427006110,0.7758,3029.4,3028.2,3.2078]
[1763427006313,0.7758,3028.3,3027.8,3.2078]
[1763427006805,0.7758,3028.3,3027.4,3.2078]
[1763427007002,0.77848986,3028.3,3027.8,3.2078]
[1763427007214,0.00495573,3028.2,3027.8,3.2078]
[1763427008809,0.77848986,3028.3,3027.8,3.2078]
[1763427008810,0.00268986,3028.3,3027.8,3.2078]
[1763427009005,3.9836,3029.4,3028.2,3.2078]
[1763427009715,0.7758,3030.5,3029.0,3.2078]
[1763427010007,0.00495573,3030.1,3029.8,3.2078]
[1763427010218,0.00364792,3030.5,3029.9,3.3]
[1763427010405,0.7758,3031.6,3030.4,3.2078]
[1763427010805,0.7758,3031.6,3031.3,3.2078]
[1763427011210,0.7758,3032.7,3031.3,6.5062]
[1763427011409,0.09422992,3032.4,3031.8,3.2078]
[1763427012103,3.30202992,3032.4,3031.5,3.2078]
[1763427012310,3.30202992,3032.4,3031.1,3.21275573]
[1763427012615,3.30202992,3032.4,3031.5,3.2078]
[1763427013617,3.2078,3031.7,3031.1,0.00495573]
[1763427013915,3.2078,3032.1,3031.1,0.00495573]
[1763427014108,0.09422992,3032.4,3031.5,3.2078]
[1763427014302,0.09422992,3032.4,3031.1,0.00495573]
[1763427014303,3.2078,3032.0,3031.1,0.00495573]
[1763427015310,3.2078,3032.0,3031.4,3.2078]
[1763427015518,0.09422992,3032.4,3031.8,3.2078]
[1763427015718,0.09422992,3032.4,3032.3,3.2078]
[1763427015918,0.09422992,3032.4,3031.9,3.2078]
[1763427016122,0.09422992,3032.4,3031.9,3.21029608]
[1763427016316,0.09422992,3032.4,3032.3,3.2078]
[1763427017009,0.09422992,3032.4,3031.9,0.00249608]
[1763427017711,0.09422992,3032.4,3032.2,3.2078]
[1763427017904,0.09422992,3032.4,3031.9,0.00249608]
[1763427018211,0.09422992,3032.4,3032.2,3.2078]
[1763427018715,0.09422992,3032.4,3032.3,3.2078]
[1763427018916,0.09422992,3032.4,3031.9,0.00249608]
[1763427019112,3.2078,3033.5,3032.3,3.2078]
[1763427019308,3.2078,3033.5,3032.8,3.2078]
[1763427020214,3.21091577,3033.5,3032.8,3.2078]
[1763427020411,3.21091577,3033.5,3032.6,0.00494747]
[1763427020412,3.2078,3035.6,3033.4,2.30056366]
[1763427020615,3.2078,3036.2,3035.4,3.2078]
[1763427020803,3.2078,3035.8,3034.8,3.2078]
[1763427021203,3.2078,3037.0,3035.2,3.2078]
[1763427021414,0.7875,3037.1,3035.2,3.21104169]
[1763427021415,0.77927205,3036.0,3035.2,3.21104169]
[1763427021616,0.77927205,3036.0,3035.6,3.2078]
[1763427021812,0.7875,3037.1,3035.8,2.30056366]
[1763427022010,0.7875,3038.2,3036.5,3.2078]
[1763427022011,3.2078,3037.7,3036.5,3.2078]
[1763427022208,3.2078,3037.7,3036.9,3.2078]
[1763427022412,3.2078,3038.1,3036.9,3.2078]
[1763427022808,3.2078,3037.7,3036.9,3.2078]
[1763427023415,0.7875,3037.2,3036.4,3.2078]
[1763427024717,3.2078,3036.9,3036.4,3.2078]
[1763427024912,3.2078,3036.5,3036.1,0.00494747]
[1763427025420,0.7875,3037.2,3036.1,0.00494747]
[1763427025421,3.2078,3036.8,3036.1,0.00494747]
[1763427025720,3.2078,3037.3,3036.1,3.21274747]
[1763427025915,3.2078,3037.3,3036.5,3.2078]
[1763427027616,3.2078,3037.7,3036.9,3.2078]
[1763427027816,0.00373548,3038.1,3037.4,3.2078]
[1763427027817,3.21153548,3038.1,3037.4,3.2078]
[1763427028126,3.2078,3038.5,3037.8,3.2078]
[1763427028309,3.2078,3039.4,3038.2,3.9631]
[1763427028510,3.2078,3039.4,3038.6,3.2078]
[1763427028917,3.2078,3039.0,3037.8,0.00493852]
[1763427029123,3.2078,3038.2,3037.4,0.00359172]
[1763427029314,3.2078,3038.0,3037.4,0.00359172]
[1763427029618,3.2078,3037.6,3036.7,3.2078]
[1763427030013,3.2078,3038.0,3036.8,0.00493852]
[1763427030214,0.00488115,3038.7,3037.6,3.2078]
[1763427030415,3.2078,3038.6,3037.2,3.2078]
[1763427030615,3.2078,3038.2,3037.2,0.00255193]
[1763427030919,3.2078,3037.8,3036.8,0.00493852]
[1763427031120,3.2078,3037.7,3036.8,0.00493852]
[1763427031326,3.2078,3037.3,3036.4,3.2078]
[1763427031517,3.2078,3037.7,3036.4,3.2078]
[1763427031720,3.2078,3037.3,3036.4,3.2112317]
[1763427032216,3.2078,3036.9,3036.4,3.2112317]
[1763427032424,3.2078,3036.9,3036.4,0.0034317]
[1763427033017,3.2078,3036.9,3036.3,0.00493852]
[1763427033710,3.2078,3036.9,3035.8,3.2078]
[1763427034016,3.2078,3036.9,3035.8,3.21016411]
[1763427034212,0.7923,3038.4,3036.7,3.2078]
[1763427034213,3.2078,3037.8,3036.7,3.2078]
[1763427034418,3.2078,3038.2,3037.3,3.2078]
[1763427034614,3.2078,3038.7,3038.1,3.2078]
[1763427034916,3.2078,3038.7,3038.1,3.21104822]
[1763427035121,3.21273852,3038.7,3038.1,3.21598674]
[1763427036025,3.21273852,3038.7,3038.1,0.00818674]
[1763427037022,0.00493852,3038.7,3038.1,0.00818674]
[1763427038223,3.21273852,3038.7,3038.1,0.00818674]
[1763427038420,3.2078,3038.2,3037.2,3.2078]
[1763427038626,0.00493852,3038.7,3036.8,3.2078]
[1763427038627,3.2078,3037.7,3036.8,3.2078]
[1763427038924,3.2078,3038.1,3036.8,3.2078]
[1763427039123,3.2078,3037.7,3036.8,3.2078]
[1763427039319,3.2078,3037.3,3036.8,0.0029049]
[1763427039518,3.2078,3037.3,3035.0,2.75086453]
[1763427039519,3.2078,3036.9,3035.5,3.2078]
[1763427039723,3.2078,3036.3,3035.3,3.2078]
[1763427039928,3.2078,3036.3,3034.2,1.523]
[1763427039929,3.2078,3036.3,3035.8,3.2078]
[1763427040125,3.2078,3035.9,3035.0,3.2078]
[1763427040333,3.2078,3035.4,3034.2,3.2078]
[1763427040520,3.21100006,3035.4,3034.2,3.21092993]
[1763427040725,3.2078,3035.0,3034.5,0.00493852]
[1763427040929,0.00493852,3035.1,3034.5,0.00493852]
[1763427041227,3.2078,3035.0,3034.2,3.21092993]
[1763427041636,3.2078,3034.6,3034.2,0.00312993]
[1763427041839,3.2078,3034.6,3033.6,3.2078]
[1763427042029,3.2078,3034.1,3033.2,3.2078]
[1763427042232,3.2078,3034.1,3033.8,0.00493852]
[1763427042427,3.2078,3034.1,3033.2,3.2078]
[1763427042735,3.2078,3034.1,3033.2,0.00275523]
[1763427043137,3.2078,3033.3,3032.2,3.2078]
[1763427043342,3.2078,3033.3,3032.4,0.00334969]
[1763427043542,0.00493852,3033.1,3032.6,3.2078]
[1763427043740,0.00493852,3033.1,3033.0,3.2078]
[1763427044149,0.00493852,3033.1,3033.0,2.49702782]
[1763427044332,3.2078,3033.1,3033.0,0.00332475]
[1763427044538,0.00401933,3033.1,3033.0,0.00332475]
[1763427047444,3.21181933,3033.1,3033.0,0.00332475]
[1763427047639,3.21181933,3033.1,3032.4,0.00334969]
[1763427047842,3.2078,3032.7,3032.4,0.00334969]
[1763427048540,3.2078,3032.7,3032.4,0.00653364]
[1763427049535,10.0001,3032.7,3030.8,3.2078]
[1763427049740,3.2078,3032.1,3031.2,3.2078]
[1763427050652,0.00494715,3032.0,3031.6,3.2078]
[1763427052435,3.2078,3032.6,3031.7,6.0]
[1763427052640,0.00401933,3033.1,3032.4,3.2078]
[1763427052845,2.37045501,3035.4,3031.7,3.2976]
[1763427052846,3.2078,3034.3,3032.9,3.2078]
[1763427053047,3.2078,3034.3,3033.5,3.2078]
[1763427053447,0.00494715,3034.2,3033.6,0.00494715]
[1763427053841,3.2078,3033.9,3033.6,0.00494715]
[1763427054042,3.2078,3033.9,3033.6,0.00815658]
[1763427054248,0.00801882,3034.2,3033.6,0.00815658]
[1763427055847,3.2078,3033.7,3033.6,0.00815658]
[1763427056049,3.2078,3033.7,3032.5,3.2078]
[1763427056258,3.21581882,3034.2,3033.3,3.2078]
[1763427056953,3.21581882,3034.2,3033.4,0.00494715]
[1763427057852,0.00801882,3034.2,3033.8,3.2078]
[1763427058538,0.00801882,3034.2,3033.4,3.21274715]
[1763427058950,3.21581882,3034.2,3033.4,3.21274715]
[1763427059151,0.00801882,3034.2,3033.8,3.2078]
[1763427059558,3.2078,3035.5,3033.9,9.2952]
[1763427059747,3.2078,3035.5,3034.9,3.2078]
[1763427060446,0.00800563,3035.5,3035.4,3.2078]
[1763427060757,0.00800563,3035.5,3035.1,0.00494715]
[1763427061448,3.2078,3035.2,3034.5,3.2078]
[1763427061648,3.2078,3034.8,3034.0,3.2078]
[1763427061849,3.2078,3035.2,3034.4,3.2078]
[1763427062049,0.00800563,3035.5,3034.8,3.2078]
[1763427062244,3.2078,3036.3,3035.3,3.2078]
[1763427062649,3.2078,3036.3,3035.0,3.2078]
[1763427062854,3.2078,3036.3,3035.4,3.2078]
[1763427063053,3.2078,3036.7,3035.9,3.2078]
[1763427063246,0.00494715,3036.6,3036.0,0.00494715]
[1763427063453,3.2078,3036.5,3036.0,0.00494715]
[1763427063660,3.2078,3036.5,3035.9,3.21204506]
[1763427063855,0.00494715,3036.6,3035.9,0.00424506]
[1763427064057,0.00494715,3036.6,3036.0,3.2078]
[1763427064357,0.00494715,3036.6,3036.4,3.2078]
[1763427064564,9.2078,3036.5,3035.9,0.00424506]
[1763427064761,9.2078,3036.5,3034.2,3.2078]
[1763427064762,0.747,3036.0,3034.2,3.2078]
[1763427065062,3.2078,3034.6,3034.2,3.2078]
[1763427065452,3.2078,3035.0,3034.2,3.2078]
[1763427065664,3.2078,3035.4,3034.2,3.2103429]
[1763427065860,3.2078,3035.0,3034.2,3.2103429]
[1763427066954,0.00494715,3035.1,3034.2,3.2103429]
[1763427067249,1.77186811,3036.4,3034.2,3.2103429]
[1763427067250,2.37045501,3038.1,3036.0,0.7369]
[1763427067456,0.747,3038.2,3037.2,3.2078]
[1763427068151,0.00493892,3038.0,3037.4,0.00493892]
[1763427068351,0.00493892,3038.0,3037.7,3.2078]
[1763427068549,0.00493892,3038.0,3037.4,0.00493892]
[1763427068952,3.2078,3037.9,3037.4,0.00493892]
[1763427069153,9.2078,3037.9,3036.9,3.2078]
[1763427069367,3.2078,3037.1,3035.7,3.2078]
[1763427069554,3.2078,3036.7,3036.1,3.2078]
[1763427069862,3.2078,3037.1,3036.1,3.2078]
[1763427070056,3.2078,3037.1,3036.6,3.2078]
[1763427070253,3.2078,3037.1,3036.6,0.00276557]
[1763427070451,3.2078,3037.1,3036.6,3.21056557]
[1763427070661,3.2078,3037.1,3036.6,0.00276557]
[1763427071261,3.2078,3036.7,3035.4,3.2078]
[1763427071464,3.2078,3036.7,3035.8,3.2078]
[1763427071762,3.2078,3036.7,3035.7,3.2078]
[1763427072166,3.2078,3036.7,3035.7,3.21084486]
[1763427072659,3.2078,3036.7,3036.1,3.2078]
[1763427073266,3.95973892,3037.2,3035.9,3.2078]
[1763427073765,3.95973892,3037.2,3036.3,3.2078]
[1763427074569,3.2078,3036.7,3035.9,3.06351754]
[1763427074769,3.2078,3036.3,3035.9,3.06351754]
[1763427074964,0.747,3036.0,3035.7,0.00304486]
[1763427075268,0.75099411,3036.0,3035.7,0.00304486]
[1763427075463,3.2078,3035.8,3035.7,4.486e-05]
[1763427078367,1.77384069,3035.8,3035.7,4.486e-05]
[1763427078561,0.00399411,3036.0,3035.7,6.00004486]
[1763427078760,0.00399411,3036.0,3035.9,3.2078]
[1763427080965,3.2078,3036.7,3035.9,3.2078]
[1763427081961,3.21117332,3036.7,3035.9,3.2078]
[1763427082363,3.21117332,3036.7,3036.3,3.2078]
[1763427082963,0.00337332,3036.7,3036.3,3.2078]
[1763427083167,3.21117332,3036.7,3036.3,1.90978656]
[1763427083470,6.0,3036.6,3035.7,4.486e-05]
[1763427083657,3.2078,3035.8,3035.1,3.2078]
[1763427084457,0.7696,3036.0,3035.1,3.2078]
[1763427084664,0.7696,3036.0,3035.1,3.21155015]
[1763427085269,0.7696,3036.0,3035.5,3.2078]
[1763427085472,3.2078,3036.3,3035.1,3.21155015]
[1763427085674,3.2078,3036.3,3035.6,3.2078]
[1763427086466,0.00337332,3036.7,3035.9,3.2078]
[1763427086873,0.00337332,3036.7,3035.5,3.2078]
[1763427087173,0.00337332,3036.7,3035.9,3.2078]
[1763427087475,3.2078,3036.4,3035.4,3.2078]
[1763427088875,0.00337332,3036.7,3036.2,3.2078]
[1763427089175,0.75193892,3037.2,3036.6,3.2078]
[1763427089176,0.00493892,3037.2,3036.6,3.2078]
[1763427090176,0.00825885,3037.2,3036.6,3.2078]
[1763427090975,0.00825885,3037.2,3037.1,3.2078]
[1763427091671,0.00825885,3037.2,3036.7,3.2078]
[1763427092280,3.2078,3036.9,3036.3,3.2078]
[1763427092673,0.00825885,3037.2,3036.3,3.2078]
[1763427093275,0.00825885,3037.2,3036.8,3.2078]
[1763427093877,3.2078,3037.0,3036.3,3.2078]
[1763427094074,4.0096,3037.0,3036.3,3.2078]
[1763427094275,0.00825885,3037.2,3036.3,3.2078]
[1763427094878,0.00825885,3037.2,3036.7,3.2078]
[1763427095085,0.00825885,3037.2,3036.3,3.2078]
[1763427095272,0.00825885,3037.2,3036.7,3.2078]
[1763427095976,0.8018,3037.1,3036.3,3.2078]
[1763427096184,3.2078,3037.0,3036.3,3.2078]
[1763427096376,3.2078,3036.4,3035.7,3.2078]
[1763427096976,3.2078,3036.8,3035.7,3.2078]
[1763427097177,3.2078,3036.4,3035.7,3.2078]
[1763427097981,3.2078,3036.8,3035.7,3.2078]
[1763427098288,3.2078,3036.8,3036.2,3.2078]
[1763427098784,0.8018,3037.1,3036.2,3.2078]
[1763427099186,0.8018,3037.1,3035.3,2.9636942]
[1763427099187,0.7862,3036.0,3035.3,2.39030508]
[1763427099381,3.2078,3035.4,3034.9,2.9636942]
[1763427099584,3.2078,3035.4,3034.7,3.2078]
[1763427099783,0.00493892,3035.6,3034.7,3.2078]
[1763427102185,3.2078,3035.4,3034.7,3.2078]
[1763427102990,0.00493892,3035.6,3034.6,3.2078]
[1763427103286,0.00493892,3035.6,3035.0,3.2078]
[1763427103487,3.2078,3035.5,3034.5,3.2078]
[1763427104280,0.00493892,3035.6,3034.9,3.2078]
[1763427104681,0.00493892,3035.6,3035.0,2.29266842]
[1763427105593,0.00493892,3035.6,3035.3,3.2078]
[1763427105997,1.18008808,3037.0,3035.4,11.912]
[1763427106202,3.21111993,3037.2,3036.3,3.2078]
[1763427107085,0.00493892,3037.1,3036.4,0.00493892]
[1763427107290,3.2078,3036.8,3036.4,0.00493892]
[1763427107491,0.00493892,3037.1,3036.4,0.00493892]
[1763427107694,0.00493892,3037.1,3036.6,3.2078]
[1763427109108,0.00493892,3037.1,3036.4,0.00493892]
[1763427109109,0.00493892,3037.1,3037.0,3.2078]
[1763427109701,0.00331993,3037.2,3037.0,3.2078]
[1763427109906,0.00331993,3037.2,3036.6,3.2078]
[1763427110098,0.00331993,3037.2,3037.0,3.2078]
[1763427111001,0.00331993,3037.2,3036.6,3.2078]
[1763427111605,3.21111993,3037.2,3036.6,3.2078]
[1763427111899,0.00331993,3037.2,3036.6,3.2078]
[1763427112904,0.00331993,3037.2,3036.5,3.2078]
[1763427113399,0.00331993,3037.2,3036.4,0.00493892]
[1763427113799,0.00331993,3037.2,3036.5,3.2078]
[1763427114210,0.00331993,3037.2,3036.9,3.2078]
[1763427114516,0.00331993,3037.2,3037.1,3.2078]
[1763427115410,0.00493892,3037.4,3037.1,9.2078]
[1763427115615,3.2078,3038.4,3037.1,5.50046842]
[1763427115817,3.2078,3038.4,3037.5,3.2078]
[1763427116312,3.963,3038.4,3037.5,3.2078]
[1763427116509,0.00493892,3038.3,3037.5,3.21049836]
[1763427118518,3.2078,3037.9,3037.5,0.00269836]
[1763427120306,0.00493892,3038.3,3037.8,3.2078]
[1763427120506,0.0346,3038.7,3038.2,3.2078]
[1763427120712,0.0346,3038.7,3037.6,2.35107691]
[1763427120713,3.2078,3039.4,3038.6,5.50046842]
[1763427120909,1.18008808,3040.7,3038.6,5.50046842]
[1763427120910,3.2078,3040.7,3039.3,0.7784]
[1763427121213,3.2078,3039.8,3039.0,3.2078]
[1763427121712,3.2078,3039.4,3039.1,0.00493892]
[1763427122011,1.50880644,3039.3,3037.5,0.00269836]
[1763427122204,1.50880644,3039.3,3036.8,2.29266842]
[1763427122205,3.2078,3037.8,3036.7,3.2078]
[1763427122415,3.2078,3037.8,3037.1,3.2078]
[1763427122608,3.2078,3037.2,3036.7,3.2078]
[1763427122811,0.00493892,3037.3,3037.1,3.2078]
[1763427123008,3.2078,3037.2,3036.7,3.2078]
[1763427123212,3.21113067,3037.2,3036.7,0.00343668]
[1763427123823,3.21113067,3037.2,3036.7,3.21123668]
[1763427124115,0.00333067,3037.2,3037.1,3.2078]
[1763427124315,3.2078,3039.1,3037.1,5.50046842]
[1763427124618,2.37045501,3040.0,3037.8,2.29266842]
[1763427124619,3.2078,3039.2,3037.8,2.29266842]
[1763427124812,3.2078,3039.2,3038.1,3.2078]
[1763427125125,3.2078,3039.2,3038.2,3.2078]
[1763427125315,0.00493892,3039.0,3038.4,0.00493892]
[1763427125512,0.00493892,3039.0,3038.6,3.2078]
[1763427126721,3.2078,3038.7,3038.4,0.00493892]
[1763427127506,0.00493892,3039.0,3038.6,3.2078]
[1763427128510,0.00255567,3039.2,3038.6,6.4982]
[1763427128714,3.2078,3039.7,3039.0,3.2078]
[1763427128910,0.01714026,3040.1,3038.5,2.29266842]
[1763427128911,0.01714026,3040.1,3039.4,3.2078]
[1763427129117,3.2078,3040.5,3039.8,2.29266842]
[1763427129319,3.2078,3041.6,3040.3,3.2078]
[1763427129510,3.2078,3041.2,3040.6,0.00493892]
[1763427129712,3.2078,3040.8,3040.6,0.00255356]
[1763427130021,0.00311106,3041.2,3040.6,0.00255356]
[1763427130421,0.00311106,3041.2,3041.0,0.7784]
[1763427130817,0.00311106,3041.2,3040.8,0.00493892]
[1763427131018,3.2078,3040.9,3039.3,0.7784]
[1763427131320,3.2078,3039.8,3038.6,4.124]
[1763427131520,3.2078,3039.4,3038.1,3.2078]
[1763427131722,3.2078,3038.9,3038.1,3.2078]
[1763427131920,0.00298288,3038.9,3038.6,3.2078]
[1763427132115,0.00493892,3038.8,3038.4,3.2078]
[1763427132421,0.00493892,3038.8,3038.2,0.00493892]
[1763427132621,3.2078,3038.4,3038.2,0.00493892]
[1763427132925,3.2078,3038.4,3036.7,3.2078]
[1763427133115,3.2078,3037.5,3036.7,3.2078]
[1763427133313,0.00493892,3038.8,3035.8,6.74407691]
[1763427133314,3.2078,3037.9,3037.2,3.2078]
[1763427133823,3.2078,3037.4,3036.1,3.2078]
[1763427134124,3.2078,3036.5,3036.4,0.00493892]
[1763427134327,3.21203507,3036.5,3036.1,3.21020465]
[1763427134528,3.21203507,3036.5,3036.1,0.00240465]
[1763427134821,9.21203507,3036.5,3035.0,0.7784]
[1763427135022,0.00423507,3036.5,3036.0,3.2078]
[1763427135223,0.00493892,3037.1,3036.4,3.2078]
[1763427135427,0.00493892,3037.1,3036.4,0.00493892]
[1763427136323,0.00757111,3037.1,3036.4,0.00761488]
[1763427136719,3.2078,3036.9,3036.4,0.00761488]
[1763427137829,0.00757111,3037.1,3036.7,2.29266842]
[1763427138134,3.2078,3038.3,3037.1,0.7784]
[1763427138323,3.2078,3038.9,3037.9,3.2078]
[1763427138630,3.2078,3038.5,3037.5,3.2078]
[1763427138829,3.2078,3038.1,3037.1,3.9862]
[1763427139031,3.2078,3037.6,3037.3,0.00493892]
[1763427139429,0.00493892,3037.9,3037.3,0.00493892]
[1763427140031,3.2078,3037.5,3037.3,0.00493892]
[1763427140233,3.2078,3037.5,3036.4,0.00267596]